[Event "FIDE WSCC 65 2022"]
[Site "Assisi"]
[Date "2022.11.20"]
[Round "6.15"]
[White "Werner, Clemens"]
[Black "Biro, Sandor"]
[Result "1-0"]
[ECO "B00"]
[WhiteElo "2236"]
[BlackElo "2084"]
[Annotator "TA"]
[PlyCount "108"]
[EventDate "2022.11.14"]
[EventType "swiss"]
[EventCountry "ITA"]
[SourceTitle "playchess.com"]
[Source "ChessBase"]
[SourceQuality "1"]
[TimeControl "40/5400+30:1800+30"]

{[%evp 10,108,101,98,152,154,165,168,165,152,238,239,240,236,256,240,330,302,317,164,172,166,171,109,118,92,97,59,61,15,58,0,0,0,7,12,58,58,66,55,147,-403,110,83,115,103,165,126,223,201,343,80,53,84,585,555,527,456,630,608,568,331,566,557,794,219,291,291,300,300,262,0,583,583,570,387,333,339,476,468,693,718,702,600,646,627,865,823,768,531,5999,5158,1964,1838,1652,1420,3783,2522,6095,5921,29988]} 1. e4 {[%emt 0:00:01]} Nc6 {[%emt 0:01:26]} 2. Nf3 {[%emt 0:01:05]} Nf6 {[%emt 0:03:30]} 3. e5 {[%emt 0:01:08]} Ng4 {[%emt 0:00:06]} 4. d4 {[%emt 0:00:44]} d6 {[%emt 0:00:05]} 5. h3 {[%emt 0:05:04]} Nh6 {[%emt 0:00:07]} 6. Nc3 {[%emt 0:07:05]} Bf5 {[%emt 0:20:29] B00: Queen's Fianchetto Defence, Nimzowitsch Defence.} (6... a6 $142) 7. g4 $16 {[%emt 0:07:25] [#]} Bd7 $146 {[%emt 0:04:16]} ({Predecessor:} 7... Bg6 8. d5 Nb4 9. Bb5+ c6 10. Ba4 Qc7 11. a3 Na6 12. dxc6 O-O-O 13. cxb7+ Qxb7 14. Qe2 Nc5 15. Bb5 Kb8 16. O-O Ne4 17. Ba6 Qc6 18. Nd4 Qc5 19. Be3 dxe5 20. Ne6 Qd6 21. Qb5+ {1-0 (21) Andersen,I (2137)-Lavrsen,F (1804) Hillerod 2017}) 8. Bg5 {[%emt 0:04:56]} Ng8 {[%emt 0:07:38] White is clearly better.} 9. Bg2 {[%emt 0:14:53]} h5 {[%emt 0:05:36]} (9... Qc8 $16 10. Qe2 e6 11. exd6 Bxd6) 10. e6 $18 {[%emt 0:04:33]} fxe6 {[%emt 0:05:54]} 11. Qd3 {[%emt 0:00:49][%cal Rd3g6]} Qc8 {[%emt 0:09:26]} 12. Be3 {[%emt 0:06:47]} Nh6 {[%emt 0:09:29]} 13. Qg6+ {[%emt 0:10:06]} Kd8 {[%emt 0:00:23]} 14. O-O-O {[%emt 0:02:24]} (14. Qxh5 Be8 15. Qh4 g6 $16) (14. Ng5 $142) 14... Be8 {[%emt 0:08:54]} 15. Qe4 {[%emt 0:02:21][%mdl 1024] White has strong compensation.} d5 {[%emt 0:01:36]} 16. Qf4 {[%emt 0:01:40]} ({Better is} 16. Qd3 $1 $18) 16... Nf7 {[%emt 0:00:45]} 17. g5 {[%emt 0:05:04] White has more active pieces. The black rooks are badly placed.} Nd6 {[%emt 0:02:20]} 18. Nh4 {[%emt 0:01:10]} g6 {[%emt 0:01:23]} 19. Qg3 {[%emt 0:03:01]} (19. Qf3 $14) 19... Bg7 {[%emt 0:00:33]} 20. f4 {[%emt 0:00:12]} (20. Ne2 $14) 20... b5 {[%emt 0:03:01]} 21. Rhe1 {[%emt 0:02:39]} Qa6 {[%emt 0:02:36] Strongly threatening ...b4.} 22. Kb1 {[%emt 0:00:41]} b4 {[%emt 0:01:10]} (22... Rb8 $11 {is more appropriate.}) 23. Ne2 $1 $14 {[%emt 0:00:10] Nc1 is the strong threat.} Rb8 {[%emt 0:04:15]} 24. Nc1 $1 {[%emt 0:01:46]} b3 {[%emt 0:02:45]} (24... Na5 $14) 25. Nxb3 $2 {[%emt 0:06:24][%mdl 8192]} (25. axb3 $16 {keeps the pressure on. And now Bf2 would win.} Rg8 26. Bf2) 25... Qb6 $2 {[%emt 0:00:28]} (25... Nb4 $1 $19 26. Nc1 Nc4) 26. Bf2 {[%emt 0:02:58]} a5 {[%emt 0:02:02] [#]} 27. Qc3 $1 {[%emt 0:00:38] aiming for Nc5.} ({Reject} 27. Rxe6 a4 $11) 27... Bf7 {[%emt 0:01:21]} (27... Nb5 $16 28. Qc5 a4) 28. a4 {[%emt 0:03:21]} Nc4 {[%emt 0:01:10]} (28... Rf8 $16 {was necessary.}) 29. Nf3 {[%emt 0:00:39]} Qa7 {[%emt 0:00:42]} (29... Kc8 $142 30. Nfd2 Nd6) 30. Ne5 $2 {[%emt 0:02:18]} (30. Nfd2 $18 {is more deadly.} Nxd2+ 31. Rxd2 Rxb3 32. cxb3) 30... N6xe5 $16 {[%emt 0:01:02]} 31. fxe5 {[%emt 0:00:55]} Bxe5 $2 {[%emt 0:00:31][%mdl 8192]} 32. dxe5 {[%emt 0:00:09]} Qxf2 {[%emt 0:00:20]} 33. Bf1 {[%emt 0:00:32]} Rb4 {[%emt 0:00:35]} 34. Bxc4 {[%emt 0:02:26]} Rxc4 {[%emt 0:00:08]} 35. Qd3 {[%emt 0:00:11] Threatens to win with Rf1.} Qh4 $2 {[%emt 0:00:32]} (35... Be8 36. Rf1 Qh4) 36. Nxa5 $18 {[%emt 0:00:22]} Rxa4 {[%emt 0:00:42]} 37. Nb7+ {[%emt 0:00:23]} (37. Qb5) 37... Kc8 {[%emt 0:00:23]} 38. Nc5 {[%emt 0:00:14]} Ra5 {[%emt 0:00:50] Inhibits Qb5.} 39. Qc3 {[%emt 0:00:31]} Rb5 {[%emt 0:00:48] [#]} 40. Rf1 $2 $40 {[%emt 0:00:06][%mdl 128] White mounts an attack.} (40. Rd4 $1 $18 {[%cal Rd4h4]} Rxc5 41. Qe3 (41. Rxh4 Rxc3 42. bxc3 Be8 $18) 41... Qxd4 42. Qxd4) 40... Be8 $2 {[%emt 0:00:35][%mdl 8192]} (40... Qc4 $11 {and Black stays safe.} 41. Qxc4 dxc4) 41. Rd4 {[%emt 0:32:29]} Rxc5 {[%emt 0:30:36]} 42. Rxh4 {[%emt 0:00:00]} Rxc3 {[%emt 0:00:00]} 43. bxc3 {[%emt 0:00:00][%mdl 4096] Endgame KRR-KRB} c5 {[%emt 0:00:00]} (43... Bc6 {was worth a try.} 44. Rf7 Kd8) 44. Rhf4 {[%emt 0:00:00] White is clearly winning.} Bb5 {[%emt 0:00:00]} (44... c4 $142 45. Kc1 Rg8) 45. Rf8+ {[%emt 0:00:00]} Kd7 {[%emt 0:00:00]} 46. R1f2 {[%emt 0:00:00]} ({Not} 46. Rxh8 Bxf1 47. Rg8 Bxh3 $16) 46... Rxf8 {[%emt 0:00:00]} 47. Rxf8 {[%emt 0:00:00] KR-KB} d4 {[%emt 0:00:00]} 48. cxd4 {[%emt 0:00:00]} cxd4 {[%emt 0:00:00]} 49. Rg8 {[%emt 0:00:00]} Kc6 {[%emt 0:00:00]} 50. Rxg6 {[%emt 0:00:00]} Kd5 {[%emt 0:00:00]} 51. Rh6 {[%emt 0:00:00] Black must now prevent g6.} Kxe5 {[%emt 0:00:00]} 52. Rxh5 {[%emt 0:00:00]} d3 {[%emt 0:00:00]} 53. Kc1 {[%emt 0:00:00] Intending g6+ and mate.} Ba4 {[%emt 0:00:00]} 54. cxd3 {[%emt 0:00:00]} Kd5 {[%emt 0:07:02] Weighted Error Value: White=0.67/Black=0.85} 1-0